[Event "125-Jahre Werder Bremen 2024"]
[Site "Bremen"]
[Date "2024.03.02"]
[Round "1.1"]
[White "Aditya Mittal"]
[Black "Guichard, Pauline"]
[Result "1-0"]
[ECO "C48"]
[WhiteElo "2594"]
[BlackElo "2385"]
[Annotator "TA"]
[PlyCount "67"]
[EventDate "2024.02.26"]
[EventType "swiss"]
[EventCountry "GER"]
[SourceTitle "playchess.com"]
[Source "ChessBase"]
[SourceQuality "1"]
[TimeControl "40/6000+30:1800+30"]

{[%evp 9,67,0,14,1,0,8,6,6,4,13,1,14,16,-6,0,-14,0,-28,-26,-27,0,0,19,0,0,-10,13,9,5,0,0,0,95,52,139,120,150,143,214,185,216,212,347,371,460,529,514,515,529,503,758,770,740,750,1179,733,789,704,1191,735]} 1. e4 {[%emt 0:00:02]} e5 {[%emt 0:00:07]} 2. Nf3 {[%emt 0:00:01]} Nc6 {[%emt 0:00:07]} 3. Bb5 {[%emt 0:00:02]} Nf6 {[%emt 0:00:14]} 4. d3 {[%emt 0:00:03]} Bc5 {[%emt 0:00:07]} 5. Nc3 {[%emt 0:00:02]} Nd4 {[%emt 0:00:38]} 6. Nxe5 {[%emt 0:00:10]} O-O {[%emt 0:06:54]} 7. Bc4 {[%emt 0:00:08]} d6 {[%emt 0:01:25]} 8. Nxf7 {[%emt 0:00:05] The position is equal.} Rxf7 {[%emt 0:00:09]} 9. Bxf7+ {[%emt 0:00:02]} Kxf7 {[%emt 0:00:10]} 10. h3 {[%emt 0:00:32]} (10. Be3 {seems wilder.} Ng4 11. Nd5 c6 12. c3) 10... a5 {[%emt 0:02:47]} 11. Bg5 {[%emt 0:11:34]} Ne6 {[%emt 0:25:47] A dynamic duo of knights.} 12. Bh4 {[%emt 0:03:46]} Kg8 {[%emt 0:06:06][%mdl 1024] Black has compensation.} 13. Qd2 {[%emt 0:13:13]} c6 {[%emt 0:07:42]} (13... Nxe4 $6 14. Bxd8 Nxd2 15. Bh4 $16) 14. Ne2 {[%emt 0:04:45]} a4 {[%emt 0:09:10]} (14... Nxe4 15. Bxd8 Nxd2 16. Bh4 $16) 15. c3 {[%emt 0:10:11]} b5 {[%emt 0:08:20]} (15... Nxe4 $6 16. Bxd8 Nxd2 (16... Bxf2+ $2 17. Kf1 $18) 17. Be7 $16) 16. Rd1 {[%emt 0:18:24]} (16. f4 $5) 16... Qf8 {[%emt 0:02:13]} (16... Nxe4 17. Bxd8 Nxd2 18. Bh4 $18) 17. f4 {[%emt 0:01:13][%cal Bf2f4,Bf4f5][%mdl 32]} Ra7 {[%emt 0:18:41]} 18. f5 {[%emt 0:15:09]} Nd8 {[%emt 0:00:07]} 19. g4 {[%emt 0:02:00]} (19. d4 $5 Bb6 $8 (19... Nxe4 $2 {is the wrong capture.} 20. Qe3 $18) 20. Ng3 $11) 19... Re7 {[%emt 0:01:51]} 20. Ng3 {[%emt 0:01:54]} Qe8 {[%emt 0:05:56]} (20... d5 $11 {keeps the balance.}) 21. Kf1 {[%emt 0:03:42][%cal Oe4e5]} b4 {[%emt 0:04:05] [#]} 22. Kg2 $1 $16 {[%emt 0:01:37]} bxc3 {[%emt 0:03:30]} 23. bxc3 {[%emt 0:03:37]} Ba7 {[%emt 0:00:08]} (23... Qf7 $16 24. Rhe1 Bb6) 24. Rhe1 {[%emt 0:01:57]} a3 {[%emt 0:03:37]} 25. Rb1 {[%emt 0:02:02]} Rb7 {[%emt 0:01:39]} (25... Qf8 $142 26. d4 Ba6) 26. Rxb7 $18 {[%emt 0:02:25]} Bxb7 {[%emt 0:00:05][%cal Bc8b7,Bb7a6,Ba6d3][%mdl 32]} 27. Bxf6 {[%emt 0:01:03] White is clearly winning.} gxf6 {[%emt 0:00:05]} 28. Nh5 {[%emt 0:00:02]} Qf8 {[%emt 0:00:28]} 29. g5 {[%emt 0:01:14]} fxg5 {[%emt 0:01:36]} (29... Nf7 $142 30. Nxf6+ Kh8) 30. Qxg5+ {[%emt 0:00:05]} Kh8 {[%emt 0:00:03]} 31. Kh2 {[%emt 0:01:07] [#] Hoping for d4.} Ba6 {[%emt 0:00:52]} 32. Qh4 {[%emt 0:05:54]} Bxd3 {[%emt 0:00:38]} 33. Nf4 {[%emt 0:01:02] White threatens Ng6+ and mate.} Qg8 {[%emt 0:00:55]} 34. Qf6+ {[%emt 0:00:06] Weighted Error Value: White=0.10 (very precise) /Black=0.36.  Mistake:       	---       	Black=5      Inaccurate:     	White=2     	Black=1      OK:         	White=10    	Black=6      Best:        	White=1     	Black=1} 1-0

[Event "125-Jahre Werder Bremen 2024"]
[Site "Bremen"]
[Date "2024.03.02"]
[Round "1.2"]
[White "Reuker, Jari"]
[Black "Gumularz, Szymon"]
[Result "1/2-1/2"]
[ECO "E16"]
[WhiteElo "2383"]
[BlackElo "2590"]
[Annotator "ChessBase"]
[PlyCount "153"]
[EventDate "2024.02.26"]
[EventType "swiss"]
[EventCountry "GER"]
[SourceTitle "playchess.com"]
[Source "ChessBase"]
[SourceQuality "1"]
[TimeControl "40/6000+30:1800+30"]

1. d4 {[%emt 0:00:30]} Nf6 {[%emt 0:00:07]} 2. c4 {[%emt 0:00:00]} e6 {[%emt 0:00:06]} 3. Nf3 {[%emt 0:00:00]} b6 {[%emt 0:00:32]} 4. g3 {[%emt 0:00:01]} Bb7 {[%emt 0:00:28]} 5. Bg2 {[%emt 0:00:07]} Bb4+ {[%emt 0:00:45]} 6. Bd2 {[%emt 0:00:45]} a5 {[%emt 0:00:45]} 7. O-O {[%emt 0:01:41]} O-O {[%emt 0:00:07]} 8. Nc3 {[%emt 0:04:31]} d6 {[%emt 0:00:34]} 9. Qc2 {[%emt 0:10:32]} Nbd7 {[%emt 0:00:28]} 10. Rfe1 {[%emt 0:06:10]} Bxc3 {[%emt 0:00:08]} 11. Bxc3 {[%emt 0:00:28]} Be4 {[%emt 0:00:05]} 12. Qa4 {[%emt 0:06:14]} c5 {[%emt 0:05:36]} 13. Rad1 {[%emt 0:08:48]} Qc7 {[%emt 0:00:38]} 14. dxc5 {[%emt 0:10:52]} bxc5 {[%emt 0:00:20]} 15. Nd2 {[%emt 0:01:18]} Bxg2 {[%emt 0:00:07]} 16. Kxg2 {[%emt 0:00:06]} Rfb8 {[%emt 0:00:28]} 17. e4 {[%emt 0:07:57]} h6 {[%emt 0:06:33]} 18. Re2 {[%emt 0:09:12]} e5 {[%emt 0:11:46]} 19. Qc2 {[%emt 0:06:59]} Nf8 {[%emt 0:00:37]} 20. Nf1 {[%emt 0:02:30]} Ne6 {[%emt 0:00:11]} 21. Qd3 {[%emt 0:04:51]} Nd4 {[%emt 0:00:41]} 22. Ree1 {[%emt 0:00:31]} Qc6 {[%emt 0:02:14]} 23. Rd2 {[%emt 0:03:45]} Qa4 {[%emt 0:14:09]} 24. Ne3 {[%emt 0:01:59]} Qxa2 {[%emt 0:05:57]} 25. Nf5 {[%emt 0:06:57]} Qa4 {[%emt 0:11:21]} 26. Nxd6 {[%emt 0:01:33]} Qc6 {[%emt 0:00:08]} 27. Bxd4 {[%emt 0:03:05]} cxd4 {[%emt 0:00:31]} 28. Nf5 {[%emt 0:00:05]} Re8 {[%emt 0:01:37]} 29. Qa3 {[%emt 0:03:09]} Re6 {[%emt 0:12:32]} 30. Ne7+ {[%emt 0:06:41]} Rxe7 {[%emt 0:00:05]} 31. Qxe7 {[%emt 0:00:03]} Nxe4 {[%emt 0:00:06]} 32. Rxd4 {[%emt 0:00:12]} Nf6+ {[%emt 0:06:54]} 33. Rd5 {[%emt 0:00:04]} Nxd5 {[%emt 0:00:05]} 34. cxd5 {[%emt 0:00:02]} Qxd5+ {[%emt 0:00:06]} 35. Kg1 {[%emt 0:00:08]} f6 {[%emt 0:00:27]} 36. Rc1 {[%emt 0:00:22]} Qf7 {[%emt 0:00:20]} 37. Rc7 {[%emt 0:04:39]} Qxe7 {[%emt 0:01:47]} 38. Rxe7 {[%emt 0:00:02]} Rb8 {[%emt 0:00:58]} 39. Ra7 {[%emt 0:00:05]} Rb5 {[%emt 0:00:02]} 40. h4 {[%emt 0:00:42]} e4 {[%emt 0:00:37]} 41. b3 {[%emt 0:10:09]} Kh7 {[%emt 0:01:13]} 42. Kg2 {[%emt 0:00:46]} Kg6 {[%emt 0:01:45]} 43. Re7 {[%emt 0:03:58]} Rxb3 {[%emt 0:18:07]} 44. Rxe4 {[%emt 0:00:06]} Rb7 {[%emt 0:00:11]} 45. Ra4 {[%emt 0:01:15]} Ra7 {[%emt 0:00:22]} 46. g4 {[%emt 0:07:44]} Kf7 {[%emt 0:00:32]} 47. Kf3 {[%emt 0:00:43]} Ke6 {[%emt 0:00:05]} 48. Ke4 {[%emt 0:00:43]} Kd6 {[%emt 0:00:11]} 49. Kd4 {[%emt 0:00:37]} Kc6 {[%emt 0:00:19]} 50. Kc4 {[%emt 0:00:09]} Kb6 {[%emt 0:01:30]} 51. Kb3 {[%emt 0:04:55]} Rd7 {[%emt 0:01:12]} 52. Rf4 {[%emt 0:01:40]} Kc5 {[%emt 0:00:51]} 53. Rc4+ {[%emt 0:02:25]} Kb5 {[%emt 0:00:15]} 54. Rf4 {[%emt 0:01:27]} Rd5 {[%emt 0:01:24]} 55. Kc3 {[%emt 0:00:07]} Kc6 {[%emt 0:03:52]} 56. f3 {[%emt 0:01:43]} Kb5 {[%emt 0:01:19]} 57. Kb3 {[%emt 0:00:38]} Re5 {[%emt 0:02:23]} 58. Kc3 {[%emt 0:00:12]} Re3+ {[%emt 0:00:25]} 59. Kc2 {[%emt 0:01:48]} a4 {[%emt 0:05:53]} 60. g5 {[%emt 0:00:15]} Re2+ {[%emt 0:01:47]} 61. Kb1 {[%emt 0:00:11]} fxg5 {[%emt 0:00:23]} 62. hxg5 {[%emt 0:00:03]} h5 {[%emt 0:04:44]} 63. g6 {[%emt 0:00:04]} Rg2 {[%emt 0:00:58]} 64. Rf5+ {[%emt 0:00:14]} Kc4 {[%emt 0:00:08]} 65. Rxh5 {[%emt 0:00:14]} Rxg6 {[%emt 0:00:04]} 66. Ra5 {[%emt 0:00:53]} Kb4 {[%emt 0:01:08]} 67. Ra7 {[%emt 0:00:17]} Rg1+ {[%emt 0:00:37]} 68. Ka2 {[%emt 0:00:12]} Rg2+ {[%emt 0:00:15]} 69. Kb1 {[%emt 0:00:31]} g5 {[%emt 0:03:24]} 70. Re7 {[%emt 0:00:56]} Kc3 {[%emt 0:03:36]} 71. Re5 {[%emt 0:01:12]} Kd3 {[%emt 0:02:21]} 72. Ra5 {[%emt 0:01:02]} Ke3 {[%emt 0:04:03]} 73. Rf5 {[%emt 0:00:05]} Kf2 {[%emt 0:02:47]} 74. Kb2 {[%emt 0:00:31]} Kg3+ {[%emt 0:00:08]} 75. Ka3 {[%emt 0:01:59]} Kh4 {[%emt 0:00:02]} 76. Kxa4 {[%emt 0:00:21]} Rd2 {[%emt 0:00:03]} 77. Kb3 {[%emt 0:00:33]} 1/2-1/2

[Event "125-Jahre Werder Bremen 2024"]
[Site "Bremen"]
[Date "2024.03.02"]
[Round "1.3"]
[White "Cheng, Bobby"]
[Black "Colbow, Collin"]
[Result "1-0"]
[ECO "D35"]
[WhiteElo "2584"]
[BlackElo "2373"]
[Annotator "TA"]
[PlyCount "73"]
[EventDate "2024.02.26"]
[EventType "swiss"]
[EventCountry "GER"]
[SourceTitle "playchess.com"]
[Source "ChessBase"]
[SourceQuality "1"]
[TimeControl "40/6000+30:1800+30"]

{[%evp 12,73,27,32,41,37,31,17,24,33,41,20,8,7,122,125,107,70,94,90,73,44,94,44,77,46,50,15,35,0,20,8,0,-24,-37,-44,-22,-70,0,-27,0,-84,-4,-1,0,-579,69,71,117,114,345,122,274,269,792,777,29990,29990,29990,29991,29991,29992,29992,919]} 1. c4 {[%emt 0:00:03]} e6 {[%emt 0:00:29]} 2. Nc3 {[%emt 0:00:10]} d5 {[%emt 0:00:10]} 3. d4 {[%emt 0:00:06]} Nf6 {[%emt 0:00:17]} 4. cxd5 {[%emt 0:00:10]} exd5 {[%emt 0:00:08]} 5. Bg5 {[%emt 0:00:09][%cal Bc1g5,Bg5h4,Bh4g3][%mdl 32]} Bb4 {[%emt 0:00:52]} 6. e3 {[%emt 0:02:53]} h6 {[%emt 0:01:01][%cal Bh7h6,Bh6h5,Bh5h4][%mdl 32]} 7. Bh4 {[%emt 0:00:09]} g5 {[%emt 0:00:35]} 8. Bg3 {[%emt 0:00:05]} Ne4 {[%emt 0:00:29]} 9. a3 {[%emt 0:05:32]} Bxc3+ {[%emt 0:15:50] The position is equal.} 10. bxc3 {[%emt 0:01:18]} h5 {[%emt 0:04:00][%cal Ob8d7]} 11. f3 {[%emt 0:01:04]} h4 {[%emt 0:16:33]} (11... Nxg3 {simplifies} 12. hxg3 Nc6 13. Kf2 Be6) 12. Be5 {[%emt 0:06:41]} f6 {[%emt 0:00:21]} (12... Nf6 $1 $11) 13. fxe4 $16 {[%emt 0:01:04]} fxe5 {[%emt 0:00:09]} 14. Nf3 {[%emt 0:20:34]} dxe4 {[%emt 0:05:58]} 15. Nxe5 {[%emt 0:00:25]} Nd7 {[%emt 0:01:01]} 16. Ng4 {[%emt 0:25:37] White is much more active.} O-O {[%emt 0:17:00]} (16... Nb6 $14) 17. Be2 {[%emt 0:01:17]} (17. g3 $1 $16) 17... Qe7 {[%emt 0:05:10]} 18. a4 {[%emt 0:09:20]} Kg7 {[%emt 0:04:23]} 19. Qb3 {[%emt 0:02:28]} Nf6 {[%emt 0:02:46]} 20. Ne5 {[%emt 0:00:27]} Be6 {[%emt 0:13:39]} 21. Qb1 {[%emt 0:11:09][%cal Oe1g1]} (21. Qxb7 Rab8 22. Qxa7 Rb2 $17) 21... Nd7 $1 {[%emt 0:06:48]} 22. Nc4 {[%emt 0:08:11]} (22. Qxb7 $2 Nxe5 23. dxe5 Qc5 $19) (22. Qxe4 Bf5 23. Qd5 c6 $19) 22... Bxc4 {[%emt 0:06:06]} 23. Bxc4 {[%emt 0:00:01]} Nb6 {[%emt 0:00:27]} 24. Bb3 {[%emt 0:00:01]} (24. Qb3 $11) 24... c5 {[%emt 0:01:57] Strongly threatening ...c4.} 25. a5 {[%emt 0:01:30]} Nd7 {[%emt 0:05:08] ...cxd4 is the strong threat.} 26. Qd1 {[%emt 0:08:33]} (26. Bd1 $11) 26... cxd4 {[%emt 0:01:04]} (26... Kh6 $17 {Threatens to win with ...cxd4.} 27. Ba4 Rad8) 27. Qxd4+ $11 {[%emt 0:00:01]} Ne5 {[%emt 0:00:24][%cal Oh4h3] aiming for ...h3!} 28. Qxe4 $2 {[%emt 0:00:03][%mdl 8192] [#]} (28. Bc2 $1 $11 {and White stays safe.}) 28... Rad8 $2 {[%emt 0:00:27]} ({Better is} 28... Rf4 $1 $19 29. Qc2 (29. exf4 $2 Nd3+ 30. Kd2 Qxe4 $19) 29... Rf2) 29. Bc2 $14 {[%emt 0:00:09] Black must now prevent Qh7+.} Kh8 {[%emt 0:00:59]} ({Black should play} 29... Kh6 30. Rf1 Rxf1+ (30... Qc7 31. Ke2 $16) 31. Kxf1 h3) 30. Rf1 $16 {[%emt 0:01:04] Rxf8+ would now be deadly.} Qc7 $2 {[%emt 0:00:48]} (30... Rfe8 $16 31. Ra4 Nc6) 31. Ke2 $2 {[%emt 0:01:05]} (31. Rxf8+ $18 {and the rest is easy.} Rxf8 32. O-O-O) 31... Rfe8 $2 {[%emt 0:00:21] [#]} (31... Rxf1 $16 32. Rxf1 Qc4+ 33. Qxc4 Nxc4) 32. Ra4 $1 $18 {[%emt 0:02:52]} Nd3 $2 {[%emt 0:00:30]} (32... Qg7 33. Rf5 Nf7) 33. Qg6 {[%emt 0:00:54]} Qe5 {[%emt 0:00:36]} 34. Qh6+ {[%emt 0:00:34] White mates.} (34. Bxd3 {gets mated.} Qxe3+ (34... Qxh2 35. Qh7#) 35. Kd1 Rxd3+ (35... Qxd3+ 36. Qxd3 Rxd3+ 37. Kc2 $11) 36. Kc2 Rxc3+ 37. Kb1 Rb3+ 38. Ka2 Qd2+ 39. Kxb3 Re3+ (39... Qe3+ $2 40. Kb2 $19) 40. Kc4 Rc3+ (40... Qc3+ 41. Kd5 Qe5+ 42. Kc4 Rc3+ 43. Kb4 Qc5#) 41. Kb5 Qd5+ 42. Kb4 Qc5#) 34... Kg8 {[%emt 0:00:04]} 35. Bb3+ {[%emt 0:00:15]} (35. Bxd3 {leads to mate.} Qxe3+ 36. Kd1 Qxd3+ 37. Kc1 Qxf1+ 38. Kc2 Re2+ (38... Qxg2+ $2 39. Kb3 $19) 39. Kb3 Qb1+ (39... Rxg2 40. Qg6+ Kf8 41. Qh6+ Ke7 42. Re4+ Kd7 43. Qe6+ Kc7 44. Qe5+ Kc8 45. Rc4+ $11) 40. Kc4 Re4+ (40... Rxg2 $2 41. Qe6+ Kh7 42. Qe7+ Kh6 43. Qf6+ Qg6 44. Qxg6+ Kxg6 45. Ra1 $19) 41. Kc5 Re5+ 42. Kc4 Qb5#) 35... Rd5 {[%emt 0:00:08]} 36. Bxd5+ {[%emt 0:00:09]} Qxd5 {[%emt 0:00:04]} 37. Qg6+ {[%emt 0:00:04] Weighted Error Value: White=0.42/Black=0.79.  Loses game:     	White=1     	Black=1      Missed win:     	White=1     	Black=1      Mistake:       	White=3     	Black=6      Inaccurate:     	White=5     	Black=3      OK:         	White=5     	Black=11     Best:        	White=4     	---        Strong:       	White=1     	Black=1} 1-0

[Event "125-Jahre Werder Bremen 2024"]
[Site "Bremen"]
[Date "2024.03.02"]
[Round "1.4"]
[White "Breutigam, Martin"]
[Black "Efimenko, Zahar"]
[Result "1/2-1/2"]
[ECO "A41"]
[WhiteElo "2359"]
[BlackElo "2568"]
[Annotator "TA"]
[PlyCount "41"]
[EventDate "2024.02.26"]
[EventType "swiss"]
[EventCountry "GER"]
[SourceTitle "playchess.com"]
[Source "ChessBase"]
[SourceQuality "1"]
[TimeControl "40/6000+30:1800+30"]

{[%evp 9,41,49,52,49,40,47,48,55,65,62,72,72,67,66,92,65,71,45,95,30,45,41,35,18,33,16,17,13,27,19,31,39,36,24]} 1. d4 {[%emt 0:00:16]} d6 {[%emt 0:01:14]} 2. c4 {[%emt 0:00:31]} e5 {[%emt 0:00:29]} 3. d5 {[%emt 0:00:31]} f5 {[%emt 0:01:48]} 4. e4 {[%emt 0:00:14]} Nf6 {[%emt 0:00:52]} 5. exf5 {[%emt 0:00:57]} Bxf5 {[%emt 0:03:41]} 6. Nc3 {[%emt 0:00:54]} Be7 {[%emt 0:07:21]} 7. Nge2 {[%emt 0:00:25]} Na6 {[%emt 0:05:33]} 8. Ng3 {[%emt 0:01:08]} Bd7 {[%emt 0:00:34]} 9. Be2 {[%emt 0:02:51]} O-O {[%emt 0:02:12]} 10. O-O {[%emt 0:01:06]} c6 {[%emt 0:06:57]} 11. Be3 {[%emt 0:04:10][%cal Oc4c5]} Kh8 {[%emt 0:10:47]} 12. a3 {[%emt 0:06:56]} Nc7 {[%emt 0:02:36]} 13. Rc1 {[%emt 0:03:27]} Qe8 {[%emt 0:05:27]} (13... Be8 $14) 14. b4 {[%emt 0:28:36] White is more active.} ({White should play} 14. f4 $16 {Hoping for fxe5.} exf4 15. Rxf4 (15. Bxf4 cxd5 16. cxd5 Qd8 $16)) 14... cxd5 $11 {[%emt 0:15:51]} 15. cxd5 {[%emt 0:01:10]} ({Much less strong is} 15. Nxd5 Ncxd5 16. cxd5 a5 $16) 15... Qf7 {[%emt 0:01:11]} 16. Bf3 {[%emt 0:03:44]} Nb5 {[%emt 0:01:42]} 17. Nxb5 {[%emt 0:05:52]} Bxb5 {[%emt 0:01:38]} 18. Re1 {[%emt 0:00:04]} Bd8 {[%emt 0:06:43] Repels Rc7} 19. a4 {[%emt 0:10:41]} Bd7 {[%emt 0:00:13]} 20. a5 {[%emt 0:00:09]} a6 {[%emt 0:01:01]} 21. Ne4 {[%emt 0:02:16] Weighted Error Value: White=0.12 (very precise) /Black=0.08 (flawless) .  Mistake:       	White=1     	Black=1      Inaccurate:     	White=1     	Black=1      OK:         	White=6     	Black=4} 1/2-1/2

[Event "125-Jahre Werder Bremen 2024"]
[Site "Bremen"]
[Date "2024.03.02"]
[Round "1.5"]
[White "Teclaf, Pawel"]
[Black "Hejazipour, Mitra"]
[Result "1/2-1/2"]
[ECO "D32"]
[WhiteElo "2556"]
[BlackElo "2356"]
[Annotator "TA"]
[PlyCount "45"]
[EventDate "2024.02.26"]
[EventType "swiss"]
[EventCountry "GER"]
[SourceTitle "playchess.com"]
[Source "ChessBase"]
[SourceQuality "1"]
[TimeControl "40/6000+30:1800+30"]

{[%evp 22,45,35,25,24,24,13,14,19,18,20,19,10,9,6,14,22,27,36,23,31,0,0,0,11,-110]} 1. Nf3 {[%emt 0:00:03]} d5 {[%emt 0:00:25]} 2. e3 {[%emt 0:00:04]} Nf6 {[%emt 0:00:20]} 3. c4 {[%emt 0:00:11]} e6 {[%emt 0:00:46]} 4. b3 {[%emt 0:00:05]} Be7 {[%emt 0:01:22]} 5. Bb2 {[%emt 0:03:22]} O-O {[%emt 0:03:25]} 6. Nc3 {[%emt 0:00:11]} c5 {[%emt 0:05:12]} 7. cxd5 {[%emt 0:01:08]} exd5 {[%emt 0:04:24]} 8. d4 {[%emt 0:00:10]} Nc6 {[%emt 0:02:12]} 9. Be2 {[%emt 0:00:13]} Bg4 {[%emt 0:04:05]} 10. dxc5 {[%emt 0:00:31]} Bxc5 {[%emt 0:01:47][%cal Be7c5,Bc5a7,Ba7d4][%mdl 32]} 11. O-O {[%emt 0:00:16]} a6 {[%emt 0:13:34]} 12. Rc1 {[%emt 0:03:08][%cal Oc3d5] Black should prevent Nxd5!} Ba7 {[%emt 0:04:42]} 13. Nd4 {[%emt 0:12:12]} Bxd4 {[%emt 0:13:19]} 14. Bxg4 {[%emt 0:00:42]} Be5 {[%emt 0:01:11]} 15. Bf3 {[%emt 0:10:27]} Qd6 {[%emt 0:03:56] Prevents Ba3.} 16. g3 {[%emt 0:06:00]} (16. Bxd5 $2 Nxd5 (16... Bxh2+ 17. Kh1 $15) 17. Qh5 Bxc3 18. Bxc3 Nxc3 19. Rxc3 Qd2 $19) 16... Rad8 {[%emt 0:08:46]} 17. Na4 {[%emt 0:11:54][%cal Bc3a4,Ba4b2,Bb2d3,Bd3c5][%mdl 32]} Bxb2 {[%emt 0:01:58]} 18. Nxb2 {[%emt 0:02:52]} Qa3 {[%emt 0:07:24]} 19. Nd3 {[%emt 0:00:32]} Ne4 {[%emt 0:04:08]} 20. Qe2 {[%emt 0:17:16]} Rfe8 {[%emt 0:02:23]} 21. Bxe4 {[%emt 0:04:31]} dxe4 {[%emt 0:05:01]} 22. Nc5 {[%emt 0:01:03]} Ne5 $1 {[%emt 0:08:39][%cal Od8d2] [#] And now ...Rd2! would win.} 23. Kg2 {[%emt 0:23:27] Weighted Error Value: White=0.04 (flawless) /Black=0.01 (flawless) .  Mistake:       	White=1     	---        OK:         	White=7     	Black=6      Strong:       	---       	Black=1} (23. Nxb7 $2 {is the wrong capture.} Rd2 (23... Nf3+ 24. Kg2 $11) 24. Qh5 g6 $19 (24... Rxa2 25. Rc7 $15) (24... Qxa2 $2 25. Qxe5 Rdd8 26. Qf4 $18)) (23. Nxe4 $11 {remains equal.} Qb4 24. Qc2) 1/2-1/2

[Event "125-Jahre Werder Bremen 2024"]
[Site "Bremen"]
[Date "2024.03.02"]
[Round "1.6"]
[White "Gloeckler, Christian"]
[Black "Pruijssers, Roeland"]
[Result "1/2-1/2"]
[ECO "C07"]
[WhiteElo "2356"]
[BlackElo "2537"]
[Annotator "RC"]
[PlyCount "87"]
[EventDate "2024.02.26"]
[EventType "swiss"]
[EventCountry "GER"]
[SourceTitle "playchess.com"]
[Source "ChessBase"]
[SourceQuality "1"]
[TimeControl "40/6000+30:1800+30"]

1. e4 {[%emt 0:00:01]} e6 {[%emt 0:00:26]} 2. d4 {[%emt 0:00:12]} d5 {[%emt 0:00:09]} 3. Nd2 {[%emt 0:00:07]} c5 {[%emt 0:00:24]} 4. exd5 {[%emt 0:00:43]} Qxd5 {[%emt 0:00:13]} 5. dxc5 {[%emt 0:00:08]} Qxc5 {[%emt 0:05:43]} 6. Ngf3 {[%emt 0:00:43]} Nf6 {[%emt 0:00:12]} 7. Bd3 {[%emt 0:01:07]} Bd7 {[%emt 0:10:44]} 8. O-O {[%emt 0:02:39]} Bc6 {[%emt 0:01:12]} 9. Nb3 {[%emt 0:03:03]} Qh5 {[%emt 0:13:26]} 10. Nfd4 {[%emt 0:16:45]} Qxd1 {[%emt 0:08:58]} 11. Rxd1 {[%emt 0:00:08]} Be7 {[%emt 0:00:24]} 12. Nxc6 {[%emt 0:08:28]} Nxc6 {[%emt 0:00:08]} 13. Bb5 {[%emt 0:02:57]} O-O {[%emt 0:00:21]} 14. Bxc6 {[%emt 0:03:38]} bxc6 {[%emt 0:00:07]} 15. Na5 {[%emt 0:01:46]} Rfc8 {[%emt 0:00:22]} 16. Bf4 {[%emt 0:19:56]} Nd5 {[%emt 0:12:39]} 17. Bg3 {[%emt 0:02:05]} Bb4 {[%emt 0:01:06]} 18. Nb7 {[%emt 0:08:56]} Nb6 {[%emt 0:07:30]} 19. c4 {[%emt 0:07:35]} Bf8 {[%emt 0:14:13]} 20. b3 {[%emt 0:04:11]} a5 {[%emt 0:01:23]} 21. Bd6 {[%emt 0:06:43]} Ra7 {[%emt 0:02:02]} 22. Nc5 {[%emt 0:02:12]} a4 {[%emt 0:00:48]} 23. Rac1 {[%emt 0:02:31]} axb3 {[%emt 0:04:22]} 24. axb3 {[%emt 0:00:22]} Rd8 {[%emt 0:00:33]} 25. Bxf8 {[%emt 0:02:42]} Rxd1+ {[%emt 0:00:07]} 26. Rxd1 {[%emt 0:00:05]} Kxf8 {[%emt 0:00:07]} 27. Kf1 {[%emt 0:06:32]} Ke7 {[%emt 0:00:13]} 28. Ke2 {[%emt 0:01:28]} f6 {[%emt 0:04:18]} 29. f4 {[%emt 0:01:04]} h5 {[%emt 0:03:43]} 30. Rd2 {[%emt 0:02:03]} Nc8 {[%emt 0:06:10]} 31. Kf2 {[%emt 0:00:56]} e5 {[%emt 0:02:11]} 32. fxe5 {[%emt 0:02:16]} fxe5 {[%emt 0:00:03]} 33. Re2 {[%emt 0:00:08]} Kd6 {[%emt 0:01:52]} 34. Ne4+ {[%emt 0:00:12]} Ke6 {[%emt 0:00:08]} 35. Rd2 {[%emt 0:00:29]} g6 {[%emt 0:07:19]} 36. Rd8 {[%emt 0:00:57]} Ne7 {[%emt 0:00:02]} 37. Rd6+ {[%emt 0:00:36]} Kf7 {[%emt 0:00:01]} 38. Rf6+ {[%emt 0:00:40]} Kg7 {[%emt 0:00:02]} 39. Re6 {[%emt 0:00:19]} Ra2+ {[%emt 0:00:24]} 40. Kf3 {[%emt 0:01:03]} Nf5 {[%emt 0:00:07]} 41. Rxe5 {[%emt 0:31:04]} Nd4+ {[%emt 0:32:16]} 42. Ke3 {[%emt 0:01:29]} Nf5+ {[%emt 0:01:38]} 43. Kf3 {[%emt 0:00:26]} Nd4+ {[%emt 0:00:08]} 44. Ke3 {[%emt 0:00:33]} 1/2-1/2